[Event "January 9 Early 2024"]
[Site "https://www.chess.com"]
[Date "2024.01.11"]
[Round "2"]
[White "Klekowski, Maciej"]
[Black "Tulchynskyi, Feliks"]
[Result "1-0"]
[Board "204"]
[TimeControl "180+1"]
[WhiteFideId "1132717"]
[BlackFideId "34127895"]
[WhiteElo "2863"]
[BlackElo "2569"]
[WhiteTeam "POL"]
[BlackTeam "UKR"]
[WhiteClock "0:00:16"]
[BlackClock "0:00:18"]

1. c4 {[%clk 0:03:00]}  e6 {[%clk 0:02:59]} 2. Nf3 {[%clk 0:03:00]}  Nf6 {[%clk 0:02:59]} 3. g3 {[%clk 0:03:00]}  b6 {[%clk 0:02:59]} 4. Bg2 {[%clk 0:03:00]}  Bb7 {[%clk 0:02:59]} 5. b3 {[%clk 0:03:00]}  Be7 {[%clk 0:02:59]} 6. Bb2 {[%clk 0:03:01]}  O-O {[%clk 0:03:00]} 7. O-O {[%clk 0:03:00]}  c5 {[%clk 0:03:00]} 8. d4 {[%clk 0:02:50]}  cxd4 {[%clk 0:03:00]} 9. Qxd4 {[%clk 0:02:51]}  Nc6 {[%clk 0:02:53]} 10. Qf4 {[%clk 0:02:46]}  d5 {[%clk 0:02:51]} 11. Nc3 {[%clk 0:02:42]}  Bd6 {[%clk 0:02:35]} 12. Qh4 {[%clk 0:02:42]}  d4 {[%clk 0:02:34]} 13. Nxd4 {[%clk 0:02:33]}  Nxd4 {[%clk 0:02:12]} 14. Bxb7 {[%clk 0:02:24]}  Nf5 {[%clk 0:02:09]} 15. Qh3 {[%clk 0:02:24]}  Rb8 {[%clk 0:02:08]} 16. Bf3 {[%clk 0:02:12]}  Qe7 {[%clk 0:02:04]} 17. Nb5 {[%clk 0:02:06]}  Bc5 {[%clk 0:01:57]} 18. e4 {[%clk 0:02:05]}  Nh6 {[%clk 0:01:51]} 19. Rad1 {[%clk 0:01:35]}  e5 {[%clk 0:01:35]} 20. Bc1 {[%clk 0:01:18]}  a6 {[%clk 0:01:23]} 21. Nc3 {[%clk 0:01:18]}  Bd4 {[%clk 0:01:21]} 22. Ne2 {[%clk 0:01:10]}  Rbd8 {[%clk 0:01:20]} 23. Bxh6 {[%clk 0:00:57]}  gxh6 {[%clk 0:01:21]} 24. Qxh6 {[%clk 0:00:57]}  Bb2 {[%clk 0:01:16]} 25. Rd2 {[%clk 0:00:53]}  Ba3 {[%clk 0:01:10]} 26. Rfd1 {[%clk 0:00:51]}  Bb4 {[%clk 0:01:07]} 27. Rxd8 {[%clk 0:00:31]}  Rxd8 {[%clk 0:01:07]} 28. Rxd8+ {[%clk 0:00:31]}  Qxd8 {[%clk 0:01:07]} 29. Qg5+ {[%clk 0:00:31]}  Kf8 {[%clk 0:01:06]} 30. Qxe5 {[%clk 0:00:29]}  Bc5 {[%clk 0:00:52]} 31. Kg2 {[%clk 0:00:28]}  Kg7 {[%clk 0:00:41]} 32. Qg5+ {[%clk 0:00:28]}  Kf8 {[%clk 0:00:41]} 33. e5 {[%clk 0:00:29]}  Qd1 {[%clk 0:00:32]} 34. exf6 {[%clk 0:00:21]}  Qe1 {[%clk 0:00:29]} 35. Qg7+ {[%clk 0:00:20]}  Ke8 {[%clk 0:00:29]} 36. Qg8+ {[%clk 0:00:21]}  Kd7 {[%clk 0:00:30]} 37. Qxf7+ {[%clk 0:00:22]}  Kd8 {[%clk 0:00:29]} 38. Qd5+ {[%clk 0:00:20]}  Kc7 {[%clk 0:00:25]} 39. Qc6+ {[%clk 0:00:15]}  Kd8 {[%clk 0:00:24]} 40. Qa8+ {[%clk 0:00:15]}  Kc7 {[%clk 0:00:24]} 41. Qb7+ {[%clk 0:00:15]}  Kd8 {[%clk 0:00:23]} 42. Qb8+ {[%clk 0:00:15]}  Kd7 {[%clk 0:00:21]} 43. Bg4+ {[%clk 0:00:16]}  Kc6 {[%clk 0:00:20]} 44. Qc8+ {[%clk 0:00:16]}  Kd6 {[%clk 0:00:20]} 45. Qe6+ {[%clk 0:00:13]}  Kc7 {[%clk 0:00:18]} 46. Qd7+ {[%clk 0:00:14]}  Kb8 {[%clk 0:00:18]} 47. Qc8+ {[%clk 0:00:14]}  Ka7 {[%clk 0:00:18]} 48. Qc7+ {[%clk 0:00:15]}  Ka8 {[%clk 0:00:18]} 49. Bf3# {[%clk 0:00:16]} 1-0

[Event "January 9 Early 2024"]
[Site "https://www.chess.com"]
[Date "2024.01.11"]
[Round "2"]
[White "Nowak, Lukasz"]
[Black "Dmitrenko, Viktor"]
[Result "0-1"]
[Board "208"]
[TimeControl "180+1"]
[WhiteFideId "1166760"]
[BlackFideId "14110270"]
[WhiteElo "2005"]
[BlackElo "2437"]
[WhiteTeam "POL"]
[BlackTeam "UKR"]
[WhiteClock "0:00:01"]
[BlackClock "0:00:07"]

1. c4 {[%clk 0:03:00]}  e6 {[%clk 0:03:00]} 2. g3 {[%clk 0:02:59]}  Nf6 {[%clk 0:03:00]} 3. Bg2 {[%clk 0:02:58]}  d5 {[%clk 0:03:01]} 4. Nf3 {[%clk 0:02:58]}  Be7 {[%clk 0:03:01]} 5. O-O {[%clk 0:02:55]}  O-O {[%clk 0:03:02]} 6. b3 {[%clk 0:02:53]}  a5 {[%clk 0:03:01]} 7. Bb2 {[%clk 0:02:32]}  c5 {[%clk 0:02:56]} 8. cxd5 {[%clk 0:02:30]}  Nxd5 {[%clk 0:02:54]} 9. d4 {[%clk 0:02:21]}  Nc6 {[%clk 0:02:50]} 10. dxc5 {[%clk 0:01:44]}  Bxc5 {[%clk 0:02:51]} 11. Nc3 {[%clk 0:01:42]}  Qf6 {[%clk 0:02:17]} 12. Rc1 {[%clk 0:01:36]}  Nxc3 {[%clk 0:02:10]} 13. Bxc3 {[%clk 0:01:37]}  Qe7 {[%clk 0:02:09]} 14. Ne5 {[%clk 0:01:25]}  Ba3 {[%clk 0:02:02]} 15. Nxc6 {[%clk 0:01:13]}  bxc6 {[%clk 0:02:01]} 16. Qd4 {[%clk 0:01:11]}  f6 {[%clk 0:01:57]} 17. Bb2 {[%clk 0:01:07]}  Ba6 {[%clk 0:01:36]} 18. Rxc6 {[%clk 0:00:37]}  Bxb2 {[%clk 0:01:23]} 19. Qxb2 {[%clk 0:00:37]}  Bb7 {[%clk 0:01:19]} 20. Rc3 {[%clk 0:00:32]}  Bxg2 {[%clk 0:01:19]} 21. Kxg2 {[%clk 0:00:31]}  Qb7+ {[%clk 0:01:19]} 22. Kg1 {[%clk 0:00:29]}  e5 {[%clk 0:01:07]} 23. Rfc1 {[%clk 0:00:28]}  h5 {[%clk 0:00:59]} 24. Rc7 {[%clk 0:00:26]}  Qe4 {[%clk 0:00:58]} 25. Qc2 {[%clk 0:00:23]}  Qg4 {[%clk 0:00:50]} 26. Rd1 {[%clk 0:00:21]}  Rad8 {[%clk 0:00:47]} 27. f3 {[%clk 0:00:16]}  Rxd1+ {[%clk 0:00:29]} 28. Qxd1 {[%clk 0:00:17]}  Qf5 {[%clk 0:00:26]} 29. Qd7 {[%clk 0:00:13]}  Qg6 {[%clk 0:00:24]} 30. Ra7 {[%clk 0:00:10]}  h4 {[%clk 0:00:19]} 31. Kf2 {[%clk 0:00:10]}  hxg3+ {[%clk 0:00:19]} 32. hxg3 {[%clk 0:00:10]}  e4 {[%clk 0:00:18]} 33. Qd5+ {[%clk 0:00:06]}  Kh8 {[%clk 0:00:16]} 34. Qxe4 {[%clk 0:00:05]}  f5 {[%clk 0:00:11]} 35. Qh4+ {[%clk 0:00:03]}  Kg8 {[%clk 0:00:11]} 36. Qe7 {[%clk 0:00:02]}  f4 {[%clk 0:00:08]} 37. g4 {[%clk 0:00:01]}  Qb6+ {[%clk 0:00:07]} 0-1

[Event "January 9 Early 2024"]
[Site "https://www.chess.com"]
[Date "2024.01.11"]
[Round "2"]
[White "Szpar, Milosz"]
[Black "Tomb, Maroun"]
[Result "0-1"]
[Board "210"]
[TimeControl "180+1"]
[WhiteFideId "1184989"]
[BlackFideId "5300398"]
[WhiteElo "2844"]
[BlackElo "2580"]
[WhiteTeam "POL"]
[BlackTeam "LBN"]
[WhiteClock "0:00:01"]
[BlackClock "0:00:13"]

1. e4 {[%clk 0:03:00]}  d6 {[%clk 0:02:58]} 2. d4 {[%clk 0:03:00]}  Nf6 {[%clk 0:02:57]} 3. Bd3 {[%clk 0:03:01]}  e5 {[%clk 0:02:55]} 4. c3 {[%clk 0:03:01]}  d5 {[%clk 0:02:54]} 5. dxe5 {[%clk 0:03:00]}  Nxe4 {[%clk 0:02:54]} 6. Nf3 {[%clk 0:03:00]}  Nd7 {[%clk 0:02:47]} 7. Nbd2 {[%clk 0:02:56]}  Ndc5 {[%clk 0:02:44]} 8. Be2 {[%clk 0:02:45]}  Bf5 {[%clk 0:02:40]} 9. O-O {[%clk 0:02:37]}  Be7 {[%clk 0:02:39]} 10. Nd4 {[%clk 0:02:30]}  Qd7 {[%clk 0:02:22]} 11. N2b3 {[%clk 0:02:13]}  h5 {[%clk 0:02:13]} 12. f3 {[%clk 0:02:04]}  Nxb3 {[%clk 0:01:52]} 13. axb3 {[%clk 0:02:00]}  Nc5 {[%clk 0:01:46]} 14. b4 {[%clk 0:01:58]}  Na6 {[%clk 0:00:59]} 15. Nxf5 {[%clk 0:01:52]}  Qxf5 {[%clk 0:00:58]} 16. Qxd5 {[%clk 0:01:53]}  c6 {[%clk 0:00:56]} 17. Qd4 {[%clk 0:01:33]}  Nc7 {[%clk 0:00:40]} 18. Bd3 {[%clk 0:01:31]}  Qe6 {[%clk 0:00:37]} 19. Qe4 {[%clk 0:01:15]}  g6 {[%clk 0:00:35]} 20. Be3 {[%clk 0:01:10]}  a6 {[%clk 0:00:35]} 21. Rae1 {[%clk 0:01:06]}  Rd8 {[%clk 0:00:32]} 22. Bb1 {[%clk 0:01:02]}  Nd5 {[%clk 0:00:31]} 23. Bc1 {[%clk 0:01:01]}  h4 {[%clk 0:00:31]} 24. f4 {[%clk 0:01:00]}  c5 {[%clk 0:00:28]} 25. bxc5 {[%clk 0:00:45]}  Bxc5+ {[%clk 0:00:29]} 26. Kh1 {[%clk 0:00:46]}  Ne7 {[%clk 0:00:26]} 27. Qxb7 {[%clk 0:00:34]}  h3 {[%clk 0:00:26]} 28. g3 {[%clk 0:00:29]}  Nc6 {[%clk 0:00:26]} 29. Be4 {[%clk 0:00:27]}  Na5 {[%clk 0:00:21]} 30. Qc7 {[%clk 0:00:12]}  Bb6 {[%clk 0:00:21]} 31. f5 {[%clk 0:00:10]}  gxf5 {[%clk 0:00:22]} 32. Qxd8+ {[%clk 0:00:05]}  Bxd8 {[%clk 0:00:21]} 33. Bxf5 {[%clk 0:00:06]}  Qc6+ {[%clk 0:00:21]} 34. Be4 {[%clk 0:00:06]}  Qc4 {[%clk 0:00:20]} 35. Bf4 {[%clk 0:00:04]}  O-O {[%clk 0:00:19]} 36. Bc1 {[%clk 0:00:03]}  Nb3 {[%clk 0:00:19]} 37. Bh6 {[%clk 0:00:03]}  Re8 {[%clk 0:00:19]} 38. Rf4 {[%clk 0:00:03]}  Kh8 {[%clk 0:00:15]} 39. Rg4 {[%clk 0:00:02]}  Rg8 {[%clk 0:00:14]} 40. Rf4 {[%clk 0:00:02]}  Nd2 {[%clk 0:00:13]} 41. Ba8 {[%clk 0:00:01]}  Qc8 {[%clk 0:00:13]} 42. Bd5 {[%clk 0:00:01]}  Qd7 {[%clk 0:00:13]} 0-1

[Event "January 9 Early 2024"]
[Site "https://www.chess.com"]
[Date "2024.01.11"]
[Round "2"]
[White "Sadhwani, Raunak"]
[Black "Levitan, Tal"]
[Result "1-0"]
[Board "212"]
[TimeControl "180+1"]
[WhiteFideId "35093487"]
[BlackFideId "2804603"]
[WhiteElo "3078"]
[BlackElo "2514"]
[WhiteTeam "IND"]
[BlackTeam "ISR"]
[WhiteClock "0:00:07"]
[BlackClock "0:00:02"]

1. e3 {[%clk 0:03:00]}  e5 {[%clk 0:02:59]} 2. c4 {[%clk 0:03:00]}  c6 {[%clk 0:02:59]} 3. Nf3 {[%clk 0:02:56]}  e4 {[%clk 0:02:58]} 4. Nd4 {[%clk 0:02:56]}  d5 {[%clk 0:02:59]} 5. Nc3 {[%clk 0:02:53]}  Nf6 {[%clk 0:02:57]} 6. d3 {[%clk 0:02:50]}  Bd6 {[%clk 0:02:24]} 7. cxd5 {[%clk 0:02:40]}  cxd5 {[%clk 0:02:24]} 8. dxe4 {[%clk 0:02:41]}  dxe4 {[%clk 0:02:23]} 9. Bb5+ {[%clk 0:02:42]}  Kf8 {[%clk 0:02:07]} 10. Be2 {[%clk 0:02:37]}  a6 {[%clk 0:02:06]} 11. Qc2 {[%clk 0:02:31]}  Qe7 {[%clk 0:02:04]} 12. Nxe4 {[%clk 0:02:22]}  Nc6 {[%clk 0:01:50]} 13. Nxf6 {[%clk 0:02:06]}  Nxd4 {[%clk 0:01:45]} 14. exd4 {[%clk 0:01:53]}  Qxf6 {[%clk 0:01:46]} 15. O-O {[%clk 0:01:53]}  Bf5 {[%clk 0:01:44]} 16. Qb3 {[%clk 0:01:51]}  h5 {[%clk 0:01:08]} 17. Bf3 {[%clk 0:01:29]}  h4 {[%clk 0:00:40]} 18. Qxb7 {[%clk 0:01:27]}  Rb8 {[%clk 0:00:39]} 19. Qc6 {[%clk 0:01:13]}  Bg4 {[%clk 0:00:28]} 20. Be4 {[%clk 0:00:51]}  h3 {[%clk 0:00:14]} 21. g3 {[%clk 0:00:37]}  Rc8 {[%clk 0:00:13]} 22. Qxa6 {[%clk 0:00:32]}  g6 {[%clk 0:00:07]} 23. Bf4 {[%clk 0:00:29]}  Rd8 {[%clk 0:00:02]} 24. Bxd6+ {[%clk 0:00:10]}  Rxd6 {[%clk 0:00:02]} 25. Qb5 {[%clk 0:00:09]}  Kg7 {[%clk 0:00:02]} 26. Qe5 {[%clk 0:00:09]}  Rxd4 {[%clk 0:00:02]} 27. Qxf6+ {[%clk 0:00:09]}  Kxf6 {[%clk 0:00:03]} 28. Bh1 {[%clk 0:00:09]}  Rb8 {[%clk 0:00:04]} 29. b3 {[%clk 0:00:09]}  Rd2 {[%clk 0:00:04]} 30. Rfe1 {[%clk 0:00:09]}  Rc8 {[%clk 0:00:04]} 31. Be4 {[%clk 0:00:05]}  Rcd8 {[%clk 0:00:02]} 32. a4 {[%clk 0:00:06]}  Rb2 {[%clk 0:00:02]} 33. a5 {[%clk 0:00:06]}  Rdd2 {[%clk 0:00:02]} 34. a6 {[%clk 0:00:06]}  Rxf2 {[%clk 0:00:02]} 35. Rf1 {[%clk 0:00:07]} 1-0

[Event "January 9 Early 2024"]
[Site "https://www.chess.com"]
[Date "2024.01.11"]
[Round "2"]
[White "Barp, Alberto"]
[Black "Ambrogi, Agustin"]
[Result "1-0"]
[Board "216"]
[TimeControl "180+1"]
[WhiteFideId "872555"]
[BlackFideId "170933"]
[WhiteElo "2675"]
[BlackElo "2391"]
[WhiteTeam "ITA"]
[BlackTeam "ARG"]
[WhiteClock "0:00:42"]
[BlackClock "0:00:13"]

1. c4 {[%clk 0:02:58]}  e6 {[%clk 0:02:58]} 2. b3 {[%clk 0:02:56]}  d5 {[%clk 0:02:58]} 3. Bb2 {[%clk 0:02:56]}  d4 {[%clk 0:02:58]} 4. Nf3 {[%clk 0:02:56]}  c5 {[%clk 0:02:59]} 5. e3 {[%clk 0:02:57]}  Nc6 {[%clk 0:02:59]} 6. exd4 {[%clk 0:02:56]}  cxd4 {[%clk 0:02:59]} 7. d3 {[%clk 0:02:57]}  Nf6 {[%clk 0:02:59]} 8. Be2 {[%clk 0:02:57]}  Bb4+ {[%clk 0:02:58]} 9. Nbd2 {[%clk 0:02:56]}  e5 {[%clk 0:02:58]} 10. O-O {[%clk 0:02:56]}  a5 {[%clk 0:02:58]} 11. Ne1 {[%clk 0:02:53]}  O-O {[%clk 0:02:58]} 12. Nc2 {[%clk 0:02:53]}  Bc5 {[%clk 0:02:57]} 13. a3 {[%clk 0:02:52]}  Bf5 {[%clk 0:02:56]} 14. Rb1 {[%clk 0:02:47]}  Re8 {[%clk 0:02:56]} 15. f3 {[%clk 0:02:45]}  Bg6 {[%clk 0:02:51]} 16. Bc1 {[%clk 0:02:43]}  Qd6 {[%clk 0:02:46]} 17. Ne4 {[%clk 0:02:41]}  Nxe4 {[%clk 0:02:44]} 18. fxe4 {[%clk 0:02:41]}  Rf8 {[%clk 0:02:44]} 19. Bf3 {[%clk 0:02:37]}  Rab8 {[%clk 0:02:43]} 20. Qd2 {[%clk 0:02:28]}  b5 {[%clk 0:02:42]} 21. b4 {[%clk 0:02:26]}  axb4 {[%clk 0:02:42]} 22. axb4 {[%clk 0:02:27]}  Nxb4 {[%clk 0:02:41]} 23. Rxb4 {[%clk 0:02:19]}  Bxb4 {[%clk 0:02:37]} 24. Qxb4 {[%clk 0:02:14]}  Qxb4 {[%clk 0:02:37]} 25. Nxb4 {[%clk 0:02:15]}  bxc4 {[%clk 0:02:38]} 26. Nc6 {[%clk 0:02:16]}  Rb1 {[%clk 0:02:07]} 27. dxc4 {[%clk 0:02:07]}  f6 {[%clk 0:02:03]} 28. Ne7+ {[%clk 0:01:53]}  Kf7 {[%clk 0:02:02]} 29. Nd5 {[%clk 0:01:53]}  Rc8 {[%clk 0:01:58]} 30. Bd2 {[%clk 0:01:45]}  Rxf1+ {[%clk 0:01:55]} 31. Kxf1 {[%clk 0:01:46]}  Rxc4 {[%clk 0:01:54]} 32. g4 {[%clk 0:01:45]}  Ke6 {[%clk 0:01:23]} 33. Ke2 {[%clk 0:01:44]}  Be8 {[%clk 0:01:21]} 34. Ke1 {[%clk 0:01:36]}  Bc6 {[%clk 0:01:01]} 35. Nb4 {[%clk 0:01:26]}  d3 {[%clk 0:00:50]} 36. Nxc6 {[%clk 0:01:15]}  Rxc6 {[%clk 0:00:50]} 37. Kf2 {[%clk 0:01:16]}  Ra6 {[%clk 0:00:46]} 38. Ke3 {[%clk 0:01:16]}  Ra3 {[%clk 0:00:46]} 39. Bd1 {[%clk 0:01:12]}  g6 {[%clk 0:00:46]} 40. Bf3 {[%clk 0:01:04]}  f5 {[%clk 0:00:41]} 41. exf5+ {[%clk 0:01:03]}  gxf5 {[%clk 0:00:41]} 42. gxf5+ {[%clk 0:01:04]}  Kxf5 {[%clk 0:00:40]} 43. Be4+ {[%clk 0:01:01]}  Ke6 {[%clk 0:00:35]} 44. Bxh7 {[%clk 0:00:59]}  Kd5 {[%clk 0:00:35]} 45. Be4+ {[%clk 0:00:57]}  Kc4 {[%clk 0:00:34]} 46. h4 {[%clk 0:00:53]}  Ra1 {[%clk 0:00:30]} 47. h5 {[%clk 0:00:52]}  Rg1 {[%clk 0:00:19]} 48. Bxd3+ {[%clk 0:00:52]}  Kd5 {[%clk 0:00:19]} 49. Be4+ {[%clk 0:00:51]}  Ke6 {[%clk 0:00:19]} 50. Kf2 {[%clk 0:00:50]}  Rd1 {[%clk 0:00:17]} 51. Bg5 {[%clk 0:00:46]}  Rd4 {[%clk 0:00:16]} 52. Kf3 {[%clk 0:00:46]}  Ra4 {[%clk 0:00:14]} 53. h6 {[%clk 0:00:44]}  Ra3+ {[%clk 0:00:15]} 54. Kg4 {[%clk 0:00:44]}  Ra1 {[%clk 0:00:14]} 55. h7 {[%clk 0:00:43]}  Ra8 {[%clk 0:00:13]} 56. Bxa8 {[%clk 0:00:42]} 1-0

[Event "January 9 Early 2024"]
[Site "https://www.chess.com"]
[Date "2024.01.11"]
[Round "2"]
[White "Samaganova, Aleksandra"]
[Black "Sharapov, Evgeny"]
[Result "0-1"]
[Board "217"]
[TimeControl "180+1"]
[WhiteFideId "13800221"]
[BlackFideId "14103133"]
[WhiteElo "2340"]
[BlackElo "2535"]
[WhiteTeam "KGZ"]
[BlackTeam "UKR"]
[WhiteClock "0:00:03"]
[BlackClock "0:00:38"]

1. c4 {[%clk 0:02:56]}  c5 {[%clk 0:02:59]} 2. Nc3 {[%clk 0:02:54]}  Nc6 {[%clk 0:02:59]} 3. g3 {[%clk 0:02:48]}  g6 {[%clk 0:02:59]} 4. Bg2 {[%clk 0:02:47]}  Bg7 {[%clk 0:03:00]} 5. e3 {[%clk 0:02:47]}  e5 {[%clk 0:03:00]} 6. Nge2 {[%clk 0:02:46]}  Nge7 {[%clk 0:02:59]} 7. O-O {[%clk 0:02:46]}  O-O {[%clk 0:02:59]} 8. a3 {[%clk 0:02:46]}  a5 {[%clk 0:02:59]} 9. Nd5 {[%clk 0:02:43]}  Nxd5 {[%clk 0:02:59]} 10. cxd5 {[%clk 0:02:43]}  Ne7 {[%clk 0:02:58]} 11. d4 {[%clk 0:02:44]}  exd4 {[%clk 0:02:58]} 12. exd4 {[%clk 0:02:44]}  cxd4 {[%clk 0:02:58]} 13. Nxd4 {[%clk 0:02:44]}  d6 {[%clk 0:02:57]} 14. Bg5 {[%clk 0:02:43]}  h6 {[%clk 0:02:56]} 15. Bf4 {[%clk 0:02:39]}  g5 {[%clk 0:02:55]} 16. Be3 {[%clk 0:02:36]}  Ng6 {[%clk 0:02:55]} 17. Qd2 {[%clk 0:02:11]}  Ne5 {[%clk 0:02:50]} 18. Rac1 {[%clk 0:02:08]}  Ng4 {[%clk 0:02:48]} 19. Rfe1 {[%clk 0:02:00]}  Nxe3 {[%clk 0:02:47]} 20. Rxe3 {[%clk 0:02:00]}  Qb6 {[%clk 0:02:43]} 21. Rc4 {[%clk 0:01:37]}  Bd7 {[%clk 0:02:39]} 22. Rb3 {[%clk 0:01:34]}  Qa6 {[%clk 0:02:39]} 23. Rc7 {[%clk 0:01:27]}  Bc8 {[%clk 0:02:17]} 24. Nb5 {[%clk 0:00:58]}  a4 {[%clk 0:02:13]} 25. Rb4 {[%clk 0:00:58]}  Bf5 {[%clk 0:02:05]} 26. Bf1 {[%clk 0:00:49]}  Qa5 {[%clk 0:01:51]} 27. Rxb7 {[%clk 0:00:46]}  Qd8 {[%clk 0:01:44]} 28. Nd4 {[%clk 0:00:39]}  Bg6 {[%clk 0:01:43]} 29. Nc6 {[%clk 0:00:39]}  Qf6 {[%clk 0:01:42]} 30. b3 {[%clk 0:00:27]}  axb3 {[%clk 0:01:41]} 31. Rxb3 {[%clk 0:00:27]}  Kh8 {[%clk 0:01:38]} 32. Rb8 {[%clk 0:00:27]}  Raxb8 {[%clk 0:01:35]} 33. Rxb8 {[%clk 0:00:27]}  Rxb8 {[%clk 0:01:35]} 34. Nxb8 {[%clk 0:00:28]}  Qa1 {[%clk 0:01:29]} 35. Qe3 {[%clk 0:00:23]}  Bd4 {[%clk 0:01:24]} 36. Qe8+ {[%clk 0:00:20]}  Kh7 {[%clk 0:01:16]} 37. Kg2 {[%clk 0:00:16]}  Qa2 {[%clk 0:01:08]} 38. Qe2 {[%clk 0:00:14]}  Qxd5+ {[%clk 0:01:06]} 39. Kg1 {[%clk 0:00:12]}  Qb7 {[%clk 0:00:56]} 40. Qb5 {[%clk 0:00:10]}  Qa7 {[%clk 0:00:45]} 41. Nc6 {[%clk 0:00:07]}  Bxf2+ {[%clk 0:00:45]} 42. Kg2 {[%clk 0:00:08]}  Qe3 {[%clk 0:00:38]} 43. Qe2 {[%clk 0:00:01]}  Be4+ {[%clk 0:00:37]} 44. Kh3 {[%clk 0:00:02]}  Qxe2 {[%clk 0:00:37]} 45. Bxe2 {[%clk 0:00:02]}  Bxc6 {[%clk 0:00:38]} 46. a4 {[%clk 0:00:02]}  Bxa4 {[%clk 0:00:38]} 47. Kg2 {[%clk 0:00:03]}  Bc5 {[%clk 0:00:37]} 48. Bd3+ {[%clk 0:00:03]}  Kg7 {[%clk 0:00:37]} 49. Kf3 {[%clk 0:00:03]}  Bc6+ {[%clk 0:00:37]} 50. Kg4 {[%clk 0:00:03]}  Bd7+ {[%clk 0:00:37]} 51. Kh5 {[%clk 0:00:03]}  f5 {[%clk 0:00:38]} 0-1

[Event "January 9 Early 2024"]
[Site "https://www.chess.com"]
[Date "2024.01.11"]
[Round "2"]
[White "Caetano, Hugo Zanotti Mendonca"]
[Black "Limontaite, Simona"]
[Result "0-1"]
[Board "220"]
[TimeControl "180+1"]
[WhiteFideId "2119420"]
[BlackFideId "12802506"]
[WhiteElo "2492"]
[BlackElo "2308"]
[WhiteTeam "BRA"]
[BlackTeam "LTU"]
[WhiteClock "0:00:34"]
[BlackClock "0:00:13"]

1. d4 {[%clk 0:03:00]}  Nf6 {[%clk 0:02:59]} 2. c4 {[%clk 0:03:01]}  e6 {[%clk 0:03:00]} 3. Nf3 {[%clk 0:03:01]}  b6 {[%clk 0:02:59]} 4. a3 {[%clk 0:03:01]}  Bb7 {[%clk 0:03:00]} 5. Nc3 {[%clk 0:03:02]}  Be7 {[%clk 0:03:00]} 6. Bg5 {[%clk 0:03:03]}  d5 {[%clk 0:03:00]} 7. e3 {[%clk 0:03:03]}  O-O {[%clk 0:03:00]} 8. cxd5 {[%clk 0:03:04]}  Nxd5 {[%clk 0:03:00]} 9. Bxe7 {[%clk 0:03:04]}  Qxe7 {[%clk 0:03:00]} 10. Bd3 {[%clk 0:03:05]}  Nd7 {[%clk 0:02:59]} 11. O-O {[%clk 0:03:02]}  Nxc3 {[%clk 0:03:00]} 12. bxc3 {[%clk 0:03:02]}  e5 {[%clk 0:03:00]} 13. Be2 {[%clk 0:03:00]}  Rad8 {[%clk 0:02:57]} 14. a4 {[%clk 0:02:59]}  exd4 {[%clk 0:02:43]} 15. cxd4 {[%clk 0:02:59]}  c5 {[%clk 0:02:43]} 16. a5 {[%clk 0:02:58]}  Nf6 {[%clk 0:02:20]} 17. axb6 {[%clk 0:02:53]}  axb6 {[%clk 0:02:21]} 18. Rb1 {[%clk 0:02:54]}  Rd6 {[%clk 0:02:15]} 19. Qc1 {[%clk 0:02:43]}  Bxf3 {[%clk 0:02:14]} 20. Bxf3 {[%clk 0:02:43]}  cxd4 {[%clk 0:02:14]} 21. exd4 {[%clk 0:02:43]}  Rfd8 {[%clk 0:01:53]} 22. h3 {[%clk 0:02:41]}  g6 {[%clk 0:01:52]} 23. Re1 {[%clk 0:02:33]}  Qd7 {[%clk 0:01:44]} 24. Qg5 {[%clk 0:02:28]}  Kg7 {[%clk 0:01:40]} 25. h4 {[%clk 0:02:18]}  h6 {[%clk 0:01:40]} 26. Qe5 {[%clk 0:02:14]}  Re8 {[%clk 0:01:35]} 27. Qg3 {[%clk 0:01:49]}  Rxe1+ {[%clk 0:01:34]} 28. Rxe1 {[%clk 0:01:50]}  Rxd4 {[%clk 0:01:32]} 29. h5 {[%clk 0:01:50]}  Qd6 {[%clk 0:01:27]} 30. Qxd6 {[%clk 0:01:38]}  Rxd6 {[%clk 0:01:28]} 31. hxg6 {[%clk 0:01:38]}  Kxg6 {[%clk 0:01:24]} 32. Rb1 {[%clk 0:01:39]}  Nd7 {[%clk 0:01:20]} 33. Rb5 {[%clk 0:01:33]}  Nc5 {[%clk 0:01:16]} 34. g3 {[%clk 0:01:32]}  f5 {[%clk 0:01:16]} 35. Kg2 {[%clk 0:01:32]}  Kf6 {[%clk 0:01:16]} 36. Rb1 {[%clk 0:01:27]}  Ne4 {[%clk 0:01:13]} 37. Bxe4 {[%clk 0:01:27]}  fxe4 {[%clk 0:01:14]} 38. Rb5 {[%clk 0:01:27]}  Ke7 {[%clk 0:01:10]} 39. g4 {[%clk 0:01:26]}  Kd7 {[%clk 0:01:10]} 40. Kg3 {[%clk 0:01:26]}  Kc6 {[%clk 0:01:11]} 41. Re5 {[%clk 0:01:27]}  Rd3+ {[%clk 0:01:07]} 42. Kg2 {[%clk 0:01:27]}  Kd6 {[%clk 0:00:27]} 43. Rxe4 {[%clk 0:01:27]}  b5 {[%clk 0:00:27]} 44. Rf4 {[%clk 0:01:21]}  Kc5 {[%clk 0:00:24]} 45. Rf6 {[%clk 0:01:15]}  Rd6 {[%clk 0:00:24]} 46. Rf5+ {[%clk 0:01:16]}  Kc4 {[%clk 0:00:24]} 47. f4 {[%clk 0:01:15]}  b4 {[%clk 0:00:23]} 48. g5 {[%clk 0:01:15]}  hxg5 {[%clk 0:00:23]} 49. fxg5 {[%clk 0:01:16]}  b3 {[%clk 0:00:22]} 50. Rf8 {[%clk 0:01:15]}  Rd5 {[%clk 0:00:21]} 51. Rg8 {[%clk 0:01:10]}  b2 {[%clk 0:00:20]} 52. Rc8+ {[%clk 0:01:06]}  Kb4 {[%clk 0:00:20]} 53. Rg8 {[%clk 0:00:33]}  b1=Q {[%clk 0:00:20]} 54. g6 {[%clk 0:00:33]}  Rg5+ {[%clk 0:00:14]} 55. Kf3 {[%clk 0:00:34]}  Qd3+ {[%clk 0:00:14]} 56. Kf4 {[%clk 0:00:34]}  Qg3+ {[%clk 0:00:13]} 57. Ke4 {[%clk 0:00:34]}  Re5+ {[%clk 0:00:13]} 0-1